bitfinex/quotes_ETHUSD_20220308
["timestamp","ask_amount","ask_price","bid_price","bid_amount"]
[1646757095966,4.64949749,2536.0,2535.2,0.98678]
[1646757096166,1.0,2535.8,2534.5,2.95986]
[1646757096467,1.468,2535.8,2534.6,0.98688]
[1646757096666,1.16273749,2535.9,2534.6,0.98688]
[1646757096964,1.0,2535.8,2534.9,1.97301]
[1646757097165,1.85054643,2536.3,2535.7,1.11958646]
[1646757097390,1.85054643,2536.3,2535.8,0.98632]
[1646757097391,0.9968,2536.3,2535.8,0.98632]
[1646757097590,3.5,2536.8,2535.8,0.98632]
[1646757097790,4.21242468,2536.8,2535.8,0.98632]
[1646757098190,4.21242468,2536.8,2535.8,1.97255]
[1646757098191,3.62852468,2536.8,2535.8,1.97255]
[1646757098393,1.42070955,2537.1,2535.8,0.98623]
[1646757098596,0.986,2536.3,2535.9,3.45931031]
[1646757098793,0.986,2536.3,2535.9,2.47282031]
[1646757098992,0.468,2536.5,2535.9,2.47282031]
[1646757099195,1.0,2536.1,2535.9,2.47282031]
[1646757099794,1.0,2536.1,2535.9,3.45929031]
[1646757100396,1.0,2536.1,2535.9,2.47282031]
[1646757100796,1.0,2536.2,2535.9,2.47282031]
[1646757100997,1.0,2536.3,2535.9,2.47282031]
[1646757101242,1.0,2536.3,2535.4,1.97307]
[1646757101443,3.83645776,2536.8,2535.2,2.47282031]
[1646757101444,1.0,2536.0,2535.2,2.47282031]
[1646757101641,1.0,2536.0,2535.2,3.45953031]
[1646757101642,1.0,2535.5,2535.2,3.45953031]
[1646757102040,1.0,2535.4,2535.2,3.45953031]
[1646757102239,0.8571,2536.0,2535.2,3.45953031]
[1646757102240,1.0,2535.9,2535.2,3.45953031]
[1646757102438,1.0,2535.9,2535.8,2.47282031]
[1646757102839,1.0,2535.9,2535.7,0.3]
[1646757103039,1.0,2535.9,2535.4,2.27314]
[1646757103239,1.3,2535.9,2535.2,0.94144704]
[1646757103442,0.468,2535.8,2535.2,0.00473704]
[1646757103639,2.87544174,2535.8,2535.2,0.00473704]
[1646757103841,0.16261545,2535.7,2535.2,0.00473704]
[1646757104041,0.468,2535.6,2535.2,0.00473704]
[1646757104240,0.768,2535.6,2535.5,0.00473685]
[1646757104446,0.93061545,2535.6,2535.5,0.00473685]
[1646757104916,1.93061545,2535.6,2535.5,0.00473685]
[1646757105103,2.91751545,2535.6,2535.5,0.00473685]
[1646757105305,2.91751545,2535.6,2535.1,0.98697]
[1646757105306,14.76751545,2535.6,2535.1,0.98697]
[1646757105504,1.91751545,2535.6,2535.1,0.98697]
[1646757105904,1.0,2535.4,2535.1,0.98697]
[1646757106103,1.0,2535.4,2535.0,0.3]
[1646757106104,2.287,2535.4,2535.0,0.3]
[1646757106305,1.0,2535.2,2534.8,0.75517371]
[1646757106508,1.0,2535.1,2534.8,0.75517371]
[1646757106706,1.0,2534.9,2534.8,0.75517371]
[1646757107305,2.61079174,2534.9,2534.8,0.75517371]
[1646757107805,1.45509,2535.1,2534.8,0.75517371]
[1646757107806,0.532,2535.0,2534.8,0.75517371]
[1646757108008,1.0,2535.7,2534.9,3.5]
[1646757108208,1.0,2535.7,2535.6,0.75517371]
[1646757108506,0.00452368,2536.0,2535.0,5.0]
[1646757108739,1.61020811,2535.9,2535.4,1.97306]
[1646757108940,1.11020811,2535.9,2535.5,1.97309]
[1646757109139,1.0,2535.9,2535.5,0.98656]
[1646757109339,1.0,2535.6,2535.5,1.28656]
[1646757109540,1.0,2535.6,2535.5,0.3]
[1646757109842,0.00452373,2536.0,2535.4,4.24618]
[1646757110240,0.00452373,2536.0,2535.6,0.00452548]
[1646757110241,1.00452467,2536.0,2535.6,0.00452548]
[1646757110441,1.0,2535.9,2535.6,0.00452548]
[1646757111443,1.0,2535.9,2535.6,0.00438446]
[1646757111842,1.0,2535.9,2535.6,0.99101446]
[1646757112043,1.0,2535.9,2535.6,1.97765446]
[1646757112242,1.0,2535.9,2535.6,2.27765446]
[1646757112512,1.0,2535.9,2535.7,1.97324]
[1646757112703,1.923e-05,2536.0,2535.7,5.47324]
[1646757112904,0.95841215,2536.7,2535.8,0.98628]
[1646757112905,0.40037408,2536.7,2535.8,0.98628]
[1646757113098,1.0,2536.3,2535.8,3.94531]
[1646757113298,1.0,2536.3,2536.0,0.98639]
[1646757113499,0.01127408,2536.7,2536.0,0.98639]
[1646757113698,1.01127408,2536.7,2536.0,0.98639]
[1646757113898,1.0,2536.7,2536.0,0.98639]
[1646757114101,0.70871222,2536.5,2536.1,0.98631]
[1646757114302,1.17671222,2536.4,2536.1,1.275575]
[1646757114502,1.0,2536.2,2536.1,1.275575]
[1646757115705,2.17968898,2536.5,2536.1,1.275575]
[1646757115907,1.47097676,2536.5,2536.1,1.275575]
[1646757116176,0.00454206,2536.3,2536.1,1.275575]
[1646757116569,1.71325428,2536.3,2536.1,1.275575]
[1646757116967,1.00454206,2536.3,2536.1,1.275575]
[1646757117373,0.70871222,2536.5,2536.1,1.275575]
[1646757117773,0.70871222,2536.6,2536.1,1.275575]
[1646757118367,0.70871222,2536.5,2536.1,1.275575]
[1646757118773,0.00435419,2536.4,2536.1,1.275575]
[1646757118975,0.70871222,2536.3,2536.1,1.275575]
[1646757119173,0.70871222,2536.3,2536.1,0.975575]
[1646757119374,0.94713807,2536.3,2535.9,1.97261]
[1646757119574,2.4826756,2536.0,2535.8,0.00435529]
[1646757119777,13.49198151,2535.9,2535.8,0.00435529]
[1646757120024,2.7572043,2535.9,2535.8,0.00435523]
[1646757120222,3.7572043,2535.9,2535.8,0.00435523]
[1646757120425,2.80459696,2535.9,2535.8,0.00435523]
[1646757120623,2.80459696,2535.9,2535.0,1.97355]
[1646757120624,16.07530651,2535.9,2535.0,1.97355]
[1646757120825,1.17398151,2535.3,2534.4,3.94697]
[1646757121022,1.17398151,2535.1,2534.4,3.94697]
[1646757121223,1.88861485,2534.9,2534.5,0.98711]
[1646757121421,1.17398151,2534.6,2534.5,0.98711]
[1646757121621,2.17398151,2534.6,2534.5,0.98711]
[1646757122621,1.17398151,2534.6,2534.5,0.98711]
[1646757123025,1.17398151,2534.6,2534.4,3.21613689]
[1646757123026,2.17398151,2534.6,2534.4,3.21613689]
[1646757123222,0.71741933,2534.7,2534.2,1.97421]
[1646757123423,1.42070955,2535.2,2534.3,0.98709]
[1646757123424,0.71741933,2535.2,2534.3,0.98709]
[1646757123941,0.468,2535.5,2534.3,0.98709]
[1646757123942,0.71741933,2535.1,2534.3,0.98709]
[1646757124541,0.71741933,2535.1,2534.0,0.02696541]
[1646757124542,0.71741933,2534.7,2534.0,0.02696541]
[1646757124743,13.10275036,2534.9,2534.6,0.00154718]
[1646757124943,0.95275036,2534.8,2534.6,0.00154718]
[1646757125143,12.85,2534.7,2534.6,0.00154718]
[1646757125445,12.85,2534.7,2533.5,4.9357]
[1646757125446,0.00072715,2534.5,2533.5,4.9357]
[1646757125648,0.00072715,2534.5,2533.5,3.94832]
[1646757125846,0.00072715,2534.5,2533.7,0.98727]
[1646757125847,1.0,2533.9,2533.7,0.98727]
[1646757126245,0.71813915,2534.4,2533.7,1.28727]
[1646757126246,1.71813915,2534.4,2533.7,1.28727]
[1646757126450,2.01813915,2534.4,2533.7,1.28727]
[1646757126848,1.71813915,2534.4,2533.7,1.28727]
[1646757127793,1.71813915,2534.4,2533.9,0.98712]
[1646757127794,1.0,2534.4,2533.9,0.98712]
[1646757127992,0.00072715,2534.5,2533.9,1.37622]
[1646757128198,0.00072715,2534.5,2534.1,0.3891]
[1646757128792,0.00072715,2534.5,2534.1,3.8891]
[1646757128994,0.00072715,2534.5,2534.2,3.34941]
[1646757129192,0.00072715,2534.5,2534.4,0.3891]
[1646757130196,0.95275036,2535.3,2534.4,16.2071]
[1646757130197,0.71813915,2535.3,2534.4,16.2071]
[1646757130399,0.71813915,2535.5,2534.6,12.2391]
[1646757130598,0.71813915,2535.4,2534.7,0.3891]
[1646757131247,1.71813915,2535.4,2534.7,0.3891]
[1646757131449,0.71813915,2535.4,2535.1,0.3891]
[1646757131648,0.71813915,2535.4,2535.0,1.37569]
[1646757131846,0.71813915,2535.4,2535.0,1.67569]
[1646757132046,0.71813915,2535.4,2535.0,1.28659]
[1646757132746,0.71813915,2535.4,2535.0,1.67569]
[1646757132946,0.71813915,2535.4,2535.1,1.97334]
[1646757133146,0.95275036,2535.7,2535.1,2.96]
[1646757133147,0.71813915,2535.5,2535.1,2.96]
[1646757133356,0.71813915,2535.5,2535.1,3.26]
[1646757133550,0.71813915,2535.5,2535.1,2.96]
[1646757133751,0.71813915,2535.5,2535.1,3.26]
[1646757133951,0.71813915,2535.6,2535.2,0.9866]
[1646757134752,0.71813915,2535.3,2535.1,2.55058464]
[1646757135005,0.71813915,2535.3,2535.0,1.0]
[1646757135006,0.95275036,2535.3,2535.0,1.0]
[1646757135202,0.95275036,2535.3,2535.0,0.7013519]
[1646757135203,0.95275036,2535.2,2535.0,0.7013519]
[1646757135404,0.95275036,2535.1,2535.0,0.1228]
[1646757135605,1.95275036,2535.1,2535.0,0.1228]
[1646757135908,2.25275036,2535.1,2535.0,0.1228]
[1646757136105,2.25275036,2535.1,2535.0,0.0728]
[1646757136106,2.42075036,2535.1,2535.0,0.0728]
[1646757136306,0.7197154,2535.1,2535.0,0.0728]
[1646757136507,8.27320381,2535.6,2535.0,0.0728]
[1646757136508,0.7197154,2535.2,2535.0,0.0728]
[1646757136908,1.95275036,2535.3,2535.0,0.0728]
[1646757137108,0.71971594,2535.1,2535.0,0.0728]
[1646757137307,1.0,2535.1,2535.0,0.0728]
[1646757137505,5.0,2535.0,2534.4,0.25]
[1646757137708,0.71980454,2534.7,2534.4,0.25]
[1646757137907,0.71980454,2534.7,2534.2,1.97414]
[1646757138106,1.71980454,2534.8,2534.2,1.97414]
[1646757138409,1.0,2534.6,2534.2,1.97414]
[1646757138851,1.0,2534.6,2534.2,2.27414]
[1646757139153,0.95,2534.6,2534.4,0.00135828]
[1646757139553,0.71980454,2534.9,2534.4,0.98845828]
[1646757139753,1.0,2534.6,2534.4,1.28845828]
[1646757139957,3.5,2534.5,2534.4,0.00135828]
[1646757140152,1.61980454,2534.5,2534.4,0.00135828]
[1646757140351,1.61980454,2534.5,2534.4,0.00449216]
[1646757140352,0.71980454,2534.5,2534.4,0.00449216]
[1646757140754,0.71980454,2534.5,2533.8,1.67620026]
[1646757140755,5.0,2534.4,2533.8,1.67620026]
[1646757140959,0.71968553,2534.0,2533.3,0.02497657]
[1646757141154,0.71968553,2534.0,2533.3,7.657e-05]
[1646757141155,0.01241065,2533.7,2533.3,7.657e-05]
[1646757141353,1.0,2533.6,2533.3,7.657e-05]
[1646757141554,1.468,2533.6,2533.1,0.039477]
[1646757141753,1.0,2533.4,2533.1,0.039477]
[1646757141950,0.9878,2533.5,2533.1,0.039477]
[1646757141951,1.0,2533.3,2533.1,0.039477]
[1646757142394,1.10878553,2533.9,2533.1,0.039477]
[1646757142395,1.0,2533.4,2533.1,0.039477]
[1646757142794,1.0,2533.3,2533.1,0.039477]
[1646757142993,0.03808025,2533.0,2532.9,0.98775]
[1646757143794,0.03808025,2533.0,2532.7,1.9755]
[1646757143995,0.03808025,2533.0,2532.2,0.00096]
[1646757144193,0.03808025,2533.0,2532.1,0.9879]
[1646757144194,1.0,2532.8,2532.1,0.9879]
[1646757144593,1.0,2532.5,2532.2,1.97581]
[1646757144794,1.0,2532.5,2532.3,1.19922377]
[1646757144998,1.0,2532.8,2532.2,2.27581]
[1646757145196,1.0,2532.8,2532.5,0.00467611]
[1646757145397,1.0,2532.8,2532.5,0.99254611]
[1646757145597,1.0,2532.6,2532.5,0.99254611]
[1646757145997,1.0,2532.8,2532.5,0.99254611]
[1646757146251,0.03808025,2533.0,2532.5,0.99722219]
[1646757146447,0.03808025,2533.0,2532.5,1.38164608]
[1646757146654,0.03808025,2533.0,2532.5,1.68164608]
[1646757147047,0.03808025,2533.0,2532.7,1.37647]
[1646757147246,0.00467407,2533.6,2533.0,0.3891]
[1646757147446,0.00934827,2533.6,2533.0,0.3891]
[1646757147650,0.20752488,2534.3,2533.0,3.3891]
[1646757147852,0.20752488,2534.3,2533.3,0.3891]
[1646757148049,0.20752488,2534.3,2533.4,0.3891]
[1646757148248,3.5,2534.4,2533.2,0.3]
[1646757148450,1.0,2534.2,2533.5,1.97422]
[1646757148648,1.0,2534.2,2532.9,2.96202]
[1646757148649,15.818,2534.1,2532.9,2.96202]
[1646757148856,1.0,2533.6,2532.4,3.94943]
[1646757149053,1.468,2533.6,2532.4,3.94943]
[1646757149248,1.0,2533.3,2532.6,1.04448511]
[1646757149448,0.468,2533.6,2532.6,1.04448511]
[1646757149649,0.468,2533.6,2532.7,0.98771]
[1646757149650,1.0,2533.4,2532.7,0.98771]
[1646757149902,1.0,2532.9,2532.6,1.97554]
[1646757150304,10.2133,2533.4,2532.6,1.97554]
[1646757150504,10.2133,2533.4,2532.7,1.06335341]
[1646757150505,8.7453,2533.4,2532.7,1.06335341]
[1646757150706,8.7453,2533.4,2532.8,0.98772]
[1646757151106,5.0,2533.2,2531.8,0.57713567]
[1646757151310,5.0,2533.2,2531.4,0.94836227]
[1646757151311,0.00214967,2531.6,2531.4,0.94836227]
[1646757151514,0.00214967,2531.6,2531.3,0.60126693]
[1646757152013,2.99785033,2531.5,2531.3,0.60126693]
[1646757152207,0.00214967,2531.6,2531.4,2.0]
[1646757152405,0.20629514,2532.0,2531.3,0.60126693]
[1646757152806,0.20629514,2532.0,2531.5,1.05105404]
[1646757153845,0.00283117,2532.4,2531.6,5.98797]
[1646757154050,11.1606,2533.4,2531.6,5.98797]
[1646757154051,9.7453,2533.4,2532.0,5.3891]
[1646757154249,0.43875208,2534.3,2533.1,3.0]
[1646757154448,0.95247598,2534.6,2533.2,3.5]
[1646757154648,0.95247598,2534.6,2532.9,0.01278449]
[1646757154649,0.95247598,2534.6,2533.0,0.3891]
[1646757154846,4.93726624,2535.3,2533.0,0.3891]
[1646757154847,0.95247598,2534.9,2533.5,0.9871]
[1646757155250,1.0,2534.6,2533.4,2.2742]
[1646757155449,1.95247598,2534.6,2533.4,4.24816]
[1646757155650,1.0,2534.5,2533.4,3.94816]
[1646757155851,0.468,2534.7,2533.0,1.19256035]
[1646757155852,1.0,2534.3,2533.0,1.19256035]
[1646757156054,1.0,2534.3,2533.2,0.98741]
[1646757156251,1.0,2534.0,2533.2,0.98741]
[1646757156452,1.0,2534.0,2533.1,1.97454]
[1646757156653,1.0,2534.0,2532.6,5.84028631]
[1646757156654,1.0,2533.7,2532.6,0.06508631]
[1646757156850,1.3,2533.7,2532.6,0.06508631]
[1646757157052,1.0,2533.3,2532.6,0.06508631]
[1646757157254,1.0,2533.3,2532.0,3.75]
[1646757157255,1.0,2533.0,2532.0,0.25]
[1646757157508,1.0,2532.9,2531.7,3.94982]
[1646757157908,1.0,2532.8,2531.7,3.94982]
[1646757158108,1.0,2532.8,2531.7,5.92553]
[1646757158312,1.16311511,2532.7,2531.4,2.2269]
[1646757158513,1.16311511,2532.7,2531.4,0.00096]
[1646757158514,0.468,2532.6,2531.4,0.00096]
[1646757158708,1.0,2532.4,2531.5,0.988]
[1646757159108,1.0,2532.1,2531.4,1.97586]
[1646757159312,1.0,2532.1,2531.5,0.01940735]
[1646757159510,1.0,2532.1,2531.5,0.01844735]
[1646757159511,4.8,2532.1,2531.5,0.01844735]
[1646757159718,1.0,2532.0,2531.5,0.01844735]
[1646757159910,1.0,2531.6,2531.5,0.01844735]
[1646757160319,1.0,2532.0,2531.5,0.01844735]
[1646757160512,1.0,2532.0,2531.6,0.00148656]
[1646757160513,1.98821,2532.0,2531.6,0.00148656]
[1646757160713,0.98821,2532.0,2531.6,0.00148656]
[1646757161012,2.58821,2532.0,2531.6,0.00148656]
[1646757161258,1.0,2531.7,2531.6,0.00148656]
[1646757161458,1.0,2531.7,2531.3,0.005947]
[1646757161459,0.2842,2531.7,2531.3,0.005947]
[1646757161662,0.98821,2532.0,2531.3,0.005947]
[1646757162057,1.37731,2532.0,2531.3,0.005947]
[1646757162258,0.058,2531.7,2531.3,0.005947]
[1646757162659,1.28821,2532.0,2531.3,0.005947]
[1646757162859,5.47643,2532.2,2530.9,0.98821]
[1646757162860,5.47643,2532.2,2531.2,0.98812]
[1646757163061,2.44443,2532.2,2531.2,0.98812]
[1646757163261,2.44443,2532.2,2531.2,0.3]
[1646757163262,1.0,2531.6,2531.2,0.3]
[1646757163659,1.0,2531.6,2530.9,0.98821]
[1646757163860,1.0,2531.7,2530.9,0.98821]
[1646757164060,1.0,2531.7,2531.6,0.00141495]
[1646757164261,0.00154505,2531.4,2531.2,1.98179064]
[1646757164464,2.62231505,2532.1,2531.2,2.28179064]
[1646757164661,0.52027,2532.1,2531.2,0.30566064]
[1646757164909,0.52027,2532.1,2531.2,0.00566064]
[1646757164910,0.3,2532.1,2531.2,0.00566064]
[1646757165112,0.123,2531.6,2531.2,0.00566064]
[1646757165313,0.468,2532.2,2530.9,0.98823]
[1646757165714,1.0,2531.8,2531.0,0.00096]
[1646757165914,1.0,2531.8,2530.9,0.98823]
[1646757166213,1.0,2531.8,2530.8,0.00096]
[1646757166214,0.95,2531.8,2530.8,0.00096]
[1646757166512,1.97661,2531.6,2530.8,0.00096]
[1646757166719,1.97661,2531.6,2530.7,0.25000001]
[1646757166720,1.97661,2531.6,2530.7,1e-08]
[1646757167217,0.98831,2531.5,2530.7,1e-08]
[1646757167613,0.98831,2531.5,2531.0,0.0045418]
[1646757168949,0.98831,2531.5,2531.1,0.00454175]
[1646757169550,1.0,2531.4,2531.1,0.00454175]
[1646757169952,1.97661,2531.6,2531.2,0.00146318]
[1646757169953,1.98834,2531.3,2531.2,0.00146318]
[1646757170153,1.97661,2531.6,2531.2,0.00146318]
[1646757170657,1.0,2532.1,2531.2,0.00146318]
[1646757170853,5.0927,2532.3,2531.2,0.00146318]
[1646757171052,0.98805,2532.1,2531.0,0.33273848]
[1646757171251,1.9882991,2531.8,2531.0,0.03273848]
[1646757171453,1.9882991,2531.8,2530.8,0.98924]
[1646757171655,1.0,2531.7,2530.8,0.00096]
[1646757171854,1.0,2531.1,2530.7,1e-08]
[1646757172511,1.0,2531.1,2530.8,0.01775502]
[1646757172512,1.0,2530.9,2530.8,0.01775502]
[1646757172908,11.85,2531.0,2530.8,0.01775502]
[1646757173109,1.0,2530.9,2530.8,0.01775502]
[1646757173510,0.98875,2531.0,2530.8,0.01775502]
[1646757173511,1.0,2531.0,2530.8,0.01775502]
[1646757173716,5.9304,2531.2,2530.7,0.00443834]
[1646757173717,2.0,2531.2,2530.7,0.00443834]
[1646757173913,0.148,2532.0,2530.7,0.39353834]
[1646757173914,7.2914,2532.0,2530.7,0.39353834]
[1646757174114,0.98827,2531.9,2530.8,4.34715572]
[1646757174315,1.0,2531.6,2530.9,1.97646]
[1646757174513,5.09713555,2532.3,2531.0,0.98812]
[1646757174514,1.0,2531.9,2531.0,0.98812]
[1646757174718,1.0,2531.9,2531.0,1.28812]
[1646757174917,1.0,2531.7,2531.0,1.28812]
[1646757175113,1.0,2531.7,2531.2,0.00443806]
[1646757175513,1.98836,2531.7,2531.2,0.99273806]
[1646757175714,1.0,2531.7,2531.3,0.98824]
[1646757176158,1.0,2532.2,2531.3,0.99205564]
[1646757176546,1.0,2532.2,2531.6,1.19062051]
[1646757176749,1.0,2532.2,2531.7,0.98806]
[1646757177148,1.0,2532.2,2531.7,1.28806]
[1646757177345,0.00421688,2532.3,2531.7,1.28806]
[1646757177549,0.00807613,2532.3,2531.7,1.28806]
[1646757177744,0.00807613,2532.3,2531.7,2.27609]
[1646757177745,0.00385925,2532.3,2531.7,2.27609]
[1646757178545,3.83557364,2533.3,2531.7,2.66519]
[1646757178748,5.952e-05,2532.3,2532.1,2.22029362]
[1646757178949,5.8054,2533.4,2532.2,5.0]
[1646757179347,1.61141878,2533.3,2532.2,6.0]
[1646757179546,5.8054,2533.4,2532.3,3.3891]
[1646757179747,5.8054,2533.4,2533.2,1.91935276]
[1646757180008,2.3686,2534.1,2533.2,1.91935276]
[1646757180009,0.71378524,2534.2,2533.2,1.91935276]
[1646757180212,0.71378524,2534.2,2533.2,2.30845276]
[1646757180213,1.611192,2534.2,2533.2,2.30845276]
[1646757180408,1.611192,2534.1,2533.4,12.2391]
[1646757180607,6.75787598,2534.8,2533.4,0.3891]
[1646757180608,1.611192,2534.0,2533.4,0.3891]
[1646757180808,0.71378524,2534.7,2533.6,0.3891]
[1646757181108,0.71378524,2534.7,2534.1,0.98688]
[1646757181109,1.61094203,2534.7,2534.1,0.98688]
[1646757181607,1.61094203,2534.6,2534.1,0.98688]
[1646757181806,1.61094203,2534.5,2534.1,0.98688]
[1646757182008,1.61094203,2534.4,2534.1,2.96055]
[1646757182207,0.71378524,2534.9,2534.1,0.98688]
[1646757182208,1.61094203,2534.3,2534.1,0.98688]
[1646757182408,0.71378524,2534.9,2533.9,2.27375]
[1646757182607,0.00393836,2534.5,2533.9,2.27375]
[1646757183207,0.00393836,2534.5,2534.1,0.8723582]
[1646757183860,0.00393845,2534.3,2534.0,1.28707]
[1646757184061,0.00393845,2534.3,2533.9,2.27415]
[1646757184264,0.00393845,2534.3,2533.9,0.25593568]
[1646757184667,0.00393845,2534.3,2533.7,0.25]
[1646757184868,0.00805742,2534.3,2532.9,0.00165335]
[1646757185067,1.0,2533.8,2532.9,0.00165335]
[1646757185269,1.61081282,2533.7,2532.9,0.00165335]
[1646757185470,1.61081282,2533.7,2533.1,0.98733]
[1646757185670,1.61081282,2533.6,2533.1,0.98733]
[1646757185867,1.0,2534.0,2533.1,0.98733]
[1646757186166,0.00411938,2533.5,2533.1,0.98733]
[1646757186366,0.00411938,2533.5,2533.1,1.28733]
[1646757186567,0.00411938,2533.5,2533.2,0.98731]
[1646757187070,1.61105948,2534.3,2533.4,5.96091]
[1646757187267,1.61105948,2534.5,2533.5,3.5]
[1646757187500,1.61082196,2534.4,2533.6,0.3891]
[1646757187700,1.1782,2534.9,2533.8,0.3891]
[1646757187900,6.43398524,2535.0,2533.9,0.98699]
[1646757187901,1.61077973,2534.8,2533.9,0.98699]
[1646757188205,2.32456497,2534.7,2533.8,0.3]
[1646757188404,1.61077973,2534.6,2533.8,0.3]
[1646757188607,1.61077973,2534.5,2533.3,0.25]
[1646757188803,1.61077973,2534.4,2533.3,0.25]
[1646757189005,1.61077973,2534.3,2533.3,0.25]
[1646757189205,1.61077973,2534.3,2533.4,0.89245378]
[1646757189405,1.61077973,2534.3,2533.3,0.25]
[1646757189607,1.61077973,2534.3,2533.4,1.97432]
[1646757189608,0.3891,2534.2,2533.4,1.97432]
[1646757189806,1.61077973,2534.1,2533.4,1.97432]
[1646757190810,6.7202,2534.4,2533.4,1.97432]
[1646757190811,1.61077973,2534.0,2533.4,1.97432]
[1646757191162,0.3891,2534.2,2533.4,1.97432]
[1646757191350,1.61104847,2534.1,2533.4,1.97432]
[1646757191750,1.61104847,2534.1,2533.3,0.3]
[1646757191751,1.61104847,2534.0,2533.3,0.3]
[1646757191951,1.61104847,2534.0,2533.2,2.27452]
[1646757192152,2.61555475,2533.9,2533.3,1.97412]
[1646757192354,1.00450628,2533.9,2533.3,8.43504]
[1646757192554,0.00450628,2533.9,2533.3,8.43504]
[1646757192757,0.00450628,2533.9,2533.7,1.07896141]
[1646757193463,1.0,2534.5,2533.7,2.06599141]
[1646757193756,5.9217,2534.9,2533.9,1.97396]
[1646757193757,1.61090815,2534.4,2533.9,1.97396]
[1646757193958,1.61090815,2534.3,2533.7,0.3]
[1646757194158,2.00000815,2534.3,2532.9,3.50165335]
[1646757194356,1.51090815,2534.2,2532.9,0.00165335]
[1646757194556,1.51090815,2534.2,2533.1,1.97467]
[1646757194757,1.90451426,2534.2,2533.2,0.98727]
[1646757195001,0.00450611,2534.2,2533.2,0.98727]
[1646757195202,0.00450611,2534.2,2533.5,0.91148072]
[1646757195600,0.00450611,2534.2,2533.5,2.88585072]
[1646757195800,1.0,2534.4,2533.5,3.18585072]
[1646757196200,6.4054,2534.5,2533.7,0.98719]
[1646757196401,6.4054,2534.5,2533.5,2.88585072]
[1646757196402,0.9872,2534.5,2533.5,2.88585072]
[1646757196601,0.9872,2534.5,2533.5,1.97437]
[1646757196803,0.00269937,2534.1,2532.9,0.00165335]
[1646757197004,0.3891,2533.9,2532.9,0.00165335]
[1646757197204,1.0,2534.0,2532.9,0.00165335]
[1646757197403,1.0,2533.8,2533.0,0.98745]
[1646757197600,0.00269937,2534.1,2532.9,5.47613335]
[1646757197601,0.00269937,2534.1,2533.1,3.5]
[1646757197804,0.00269937,2534.1,2533.5,1.9742]
[1646757198202,0.00269932,2533.6,2533.5,1.9742]
[1646757198655,0.00269932,2533.6,2533.5,0.3]
[1646757198851,0.00269932,2533.6,2533.3,1.1951116]
[1646757199450,0.00269932,2533.6,2533.4,1.97439]
[1646757199649,0.00269937,2533.7,2533.4,1.97439]
[1646757200657,0.00433682,2533.7,2533.4,1.97439]
[1646757200858,0.00433682,2533.7,2533.4,2.96156]
[1646757201857,0.00867364,2533.7,2533.4,2.96156]
[1646757202056,0.00433682,2533.7,2533.4,2.96156]
[1646757202699,0.00433682,2533.7,2533.4,1.97435]
[1646757203301,5.1068,2534.5,2533.5,0.3891]
[1646757203502,1.97429,2534.8,2533.6,3.5]
[1646757203704,6.9217,2534.9,2533.7,2.36327]
[1646757203705,1.0,2534.7,2533.7,2.36327]
[1646757203909,5.9217,2534.9,2533.9,0.3891]
[1646757204103,5.9217,2534.9,2534.2,1.10443643]
[1646757204304,0.00414329,2534.1,2533.9,0.25577418]
[1646757204502,0.00414329,2534.1,2533.9,0.55577418]
[1646757204704,0.00414329,2534.1,2533.9,0.3]
[1646757204903,0.00414329,2534.1,2533.8,0.3]
[1646757205106,0.00414329,2534.1,2533.3,1.25]
[1646757205303,0.00414329,2534.1,2533.2,1.97426]
[1646757205304,0.00414329,2534.1,2533.2,0.3]
[1646757205504,0.00818735,2534.1,2533.1,5.24767]
[1646757205705,0.00818735,2534.1,2533.3,1.97445]
[1646757205706,0.00404406,2534.1,2533.3,1.97445]
[1646757206362,0.00404406,2534.1,2533.5,1.19901925]
[1646757206562,0.00404406,2534.1,2533.4,1.9742]
[1646757206759,0.00404406,2534.1,2533.4,2.96135]
[1646757206959,0.00404422,2533.8,2533.4,2.96135]
[1646757207660,0.00404422,2533.8,2532.9,7.46291335]
[1646757207661,0.00404422,2533.8,2533.2,1.97436]
[1646757207861,0.00405974,2533.7,2533.2,1.97436]
[1646757209068,0.00405974,2533.7,2533.1,0.3]
[1646757209266,1.0,2534.3,2533.0,3.5]
[1646757209465,1.0,2534.3,2533.6,1.28924556]
[1646757209667,1.0,2534.3,2533.8,0.3891]
[1646757209908,0.71378524,2535.1,2533.6,0.90014556]
[1646757209909,1.0,2534.6,2533.6,0.90014556]
[1646757210100,1.0,2535.1,2533.6,0.90014556]
[1646757210301,1.3891,2535.1,2533.6,0.90014556]
[1646757210501,0.3891,2535.1,2533.6,1.28924556]
[1646757210700,1.376,2535.1,2534.0,1.0387935]
[1646757210902,0.9869,2535.1,2534.0,1.0387935]
[1646757211102,6.4135,2535.2,2534.1,3.5]
[1646757211305,3.17848,2535.3,2534.1,4.5]
[1646757211306,1.0,2535.3,2534.1,4.5]
[1646757211504,2.80016922,2535.8,2534.3,12.2391]
[1646757211505,0.71378524,2535.7,2534.3,12.2391]
[1646757211728,5.8039,2535.8,2534.5,0.3891]
[1646757211729,0.00419742,2534.7,2534.5,0.3891]
[1646757211904,9.742e-05,2534.7,2534.6,0.3891]
[1646757212306,9.742e-05,2534.7,2534.5,0.98644]
[1646757212510,9.742e-05,2534.7,2534.5,1.37554]
[1646757212709,0.71378524,2535.9,2534.5,1.37554]
[1646757212909,1.0,2535.9,2534.5,0.98644]
[1646757213108,1.71378524,2535.9,2534.6,1.22605533]
[1646757213308,1.71378524,2535.9,2534.6,2.21268533]
[1646757213309,1.0,2535.9,2534.6,2.21268533]
[1646757213508,0.3891,2535.8,2534.6,2.21268533]
[1646757213752,1.3891,2535.8,2534.9,0.98664]
[1646757214153,1.0,2535.8,2534.6,2.21268533]
[1646757214360,1.58293797,2535.7,2534.6,2.21268533]
[1646757214559,1.58293797,2535.7,2534.6,0.98663]
[1646757214758,1.0,2535.5,2534.5,0.3]